Workbook

Sheet Sheet1
E7: ABC Bid | J7: Complex bid | O7: Manufacturing process | T7: Manufacture cost | Y7: Complex bid
V8: Value Measure | W8: U-Value
S11: 0.25 | T11: $8500
V12: =-1000000+(10000*9500)-(10000*8500) -> 9000000 | W12: =$V$12 -> 9000000
N15: =IF($K$21=$P$17,">>>","") -> >>> | O15: New | S15: 0.25 | T15: $5000
V16: =-1000000+(10000*9500)-(10000*5000) -> 44000000 | W16: =$V$16 -> 44000000
O17: =$P$17 -> 22750000 | P17: =$S$11*$W$12+$S$15*$W$16+$S$19*$W$20 -> 22750000
I19: =1/3 -> 0.3333333333 | J19: $10k | S19: 0.5 | T19: $7500
V20: =-1000000+(10000*9500)-(10000*7500) -> 19000000 | W20: =$V$20 -> 19000000
J21: =$K$21 -> 22750000 | K21: =MAX($W$24,$P$17) -> 22750000
D23: =IF($A$37=$F$25,">>>","") ->  | E23: $9500 | N23: =IF($K$21=$W$24,">>>","") ->  | O23: Old
V24: =-1000000+(10000*9500)-(10000*8000) -> 14000000 | W24: =$V$24 -> 14000000
E25: =$F$25 -> 6916666.667 | F25: =$I$27*$W$28+$I$19*$K$21 -> 6916666.667
I27: =2/3 -> 0.6666666667 | J27: $8-9k
V28: -1000000 | W28: =$V$28 -> -1000000
D31: =IF($A$37=$W$32,">>>","") ->  | E31: Do not bid
V32: 0 | W32: =$V$32 -> 0
S35: 0.25 | T35: $8500
V36: =-1000000+(10000*8500)-(10000*8500) -> -1000000 | W36: =$V$36 -> -1000000
A37: =MAX($W$32,$F$25,$F$49) -> 8166666.667
A38: =$A$37 -> 8166666.667
N39: =IF($K$45=$P$41,">>>","") -> >>> | O39: New | S39: 0.25 | T39: $5000
V40: =-1000000+(10000*8500)-(10000*5000) -> 34000000 | W40: =$V$40 -> 34000000
O41: =$P$41 -> 12750000 | P41: =$S$35*$W$36+$S$39*$W$40+$S$43*$W$44 -> 12750000
I43: =2/3 -> 0.6666666667 | J43: $9-10k | S43: 0.5 | T43: $7500
V44: =-1000000+(10000*8500)-(10000*7500) -> 9000000 | W44: =$V$44 -> 9000000
J45: =$K$45 -> 12750000 | K45: =MAX($W$48,$P$41) -> 12750000
D47: =IF($A$37=$F$49,">>>","") -> >>> | E47: $8500 | N47: =IF($K$45=$W$48,">>>","") ->  | O47: Old
V48: =-1000000+(10000*8500)-(10000*8000) -> 4000000 | W48: =$V$48 -> 4000000
E49: =$F$49 -> 8166666.667 | F49: =$I$51*$W$52+$I$43*$K$45 -> 8166666.667
I51: =1/3 -> 0.3333333333 | J51: $8k
V52: -1000000 | W52: =$V$52 -> -1000000
